fUST/lending_fUST_20240430
["ID","MTS","AMOUNT","RATE_DAILY","PERIOD"]
[324980245,1714491039050,-5000.0,0.00021,2]
[324980246,1714491039060,-160.0,0.00021267,2]
[324980247,1714491039069,-320.0,0.00021815,2]
[324980248,1714491039080,-841.07,0.00021918,2]
[324980249,1714491039090,-10000.0,0.00021918,2]
[324980250,1714491039099,-305.6041892,0.00022,2]
[324980251,1714491039113,-910.68,0.0002227,3]
[324980252,1714491039122,-455.34,0.0002227,3]
[324980253,1714491039131,-560.78,0.00022272,3]
[324980254,1714491039140,-1821.34,0.00022272,3]
[324980255,1714491039149,-480.0,0.00022363,2]
[324980256,1714491039159,-345.131093,0.00022466,2]
[324980257,1714491039168,-154.78330338,0.000225,2]
[324980258,1714491039177,-3002.4030076,0.000225,2]
[324980259,1714491039186,-10598.56422738,0.000225,2]
[324980260,1714491039195,-2000.0,0.000225,2]
[324980261,1714491039205,-805.42085478,0.00022692,2]
[324980262,1714491039214,-308.29704128,0.00022911,2]
[324980263,1714491039223,-1900.02434615,0.00023,2]
[324980264,1714491039232,-1644.92645417,0.00023,2]
[324980265,1714491039241,-620.00000076,0.00023408,2]
[324980266,1714491039251,-668.79200376,0.00023408,2]
[324980267,1714491039260,-1176.28834664,0.00023527,2]
[324980268,1714491039269,-4099.28642839,0.000239,2]
[324980269,1714491039278,-693.45686249,0.00024,2]
[324980270,1714491039287,-620.00000004,0.00024578,2]
[324980271,1714491039297,-622.43960019,0.00024578,2]
[324980272,1714491039306,-500.0,0.00024657,2]
[324980273,1714491039315,-500.0,0.00024657,2]
[324980274,1714491039324,-380.0,0.00024658,2]
[324980275,1714491039333,-500.0,0.00024712,2]
[324980276,1714491039342,-500.0,0.00024767,2]
[324980277,1714491039351,-500.0,0.00024821,2]
[324980278,1714491039360,-500.0,0.00024876,2]
[324980279,1714491039370,-500.0,0.00024931,2]
[324980280,1714491039379,-500.0,0.00024986,2]
[324980281,1714491039388,-154.79876161,0.00025,2]
[324980282,1714491039398,-154.79876161,0.00025,2]
[324980283,1714491039408,-154.82968734,0.00025,2]
[324980284,1714491039417,-154.79876161,0.00025,2]
[324980285,1714491039427,-154.79876161,0.00025,2]
[324980286,1714491039437,-436.25,0.00025035,2]
[324980287,1714491039446,-500.0,0.00025041,2]
[324980288,1714491039455,-500.0,0.00025095,2]
[324980289,1714491039464,-500.0,0.0002515,2]
[324980290,1714491039473,-500.0,0.00025205,2]
[324980291,1714491039482,-229.16015745,0.00025207,2]
[324980292,1714491039491,-500.0,0.0002526,2]
[324980293,1714491039503,-500.0,0.00025315,2]
[324980294,1714491039512,-500.0,0.00025369,2]
[324980295,1714491039522,-500.0,0.00025424,2]
[324980296,1714491039531,-500.0,0.00025479,2]
[324980297,1714491039541,-805.42085478,0.00025484,2]
[324980298,1714491039551,-500.0,0.00025534,2]
[324980299,1714491039560,-206.56888876,0.00025589,2]
[324980300,1714491039569,-209.82008119,0.00025786,3]
[324980301,1714491039579,-620.0,0.00025807,2]
[324980302,1714491039588,-620.12198001,0.00025807,2]
[324980303,1714491039598,-1176.28834664,0.00026245,2]
[324980304,1714491039607,-150.0,0.0002694,7]
[324980305,1714491039616,-8529.21181525,0.00027,2]
[324980306,1714491039626,-909.2,0.00027043,3]
[324980307,1714491039635,-620.0,0.00027098,2]
[324980308,1714491039644,-620.006099,0.00027098,2]
[324980309,1714491039654,-1000.0,0.00027397,30]
[324980310,1714491039663,-1000.0,0.00027397,30]
[324980311,1714491039672,-1000.0,0.00027397,30]
[324980312,1714491039681,-1000.0,0.00027397,30]
[324980313,1714491039691,-1000.0,0.00027397,30]
[324980314,1714491039700,-1000.0,0.00027397,30]
[324980315,1714491039710,-1000.0,0.00027397,30]
[324980316,1714491039719,-1000.0,0.00027397,30]
[324980317,1714491039729,-166.666666,0.00027397,2]
[324980318,1714491039738,-154.81422293,0.000274,2]
[324980319,1714491039747,-220.93587945,0.00028,2]
[324980320,1714491039759,-325.81728988,0.00028,2]
[324980321,1714491039768,-417.0,0.00028035,2]
[324980322,1714491039777,-166.666666,0.00028038,2]
[324980323,1714491039787,-909.2,0.00028166,5]
[324980324,1714491039796,-805.42085478,0.00028277,4]
[324980325,1714491039805,-620.0,0.00028453,2]
[324980326,1714491039815,-620.00030495,0.00028453,2]
[324980327,1714491039824,-345.131093,0.00028493,2]
[324980328,1714491039833,-199.419334,0.00028493,2]
[324980329,1714491039843,-199.419334,0.00028493,120]
[324980330,1714491039851,-588.0,0.000286,2]
[324980331,1714491039860,-150.0,0.0002861,11]
[324980332,1714491039870,-166.666666,0.00028679,2]
[324980333,1714491039879,-4099.28642839,0.000289,2]
[324980334,1714491039889,-1176.28834664,0.00028962,2]
[324980335,1714491039898,-909.2,0.00029289,5]
[324980336,1714491039907,-166.666666,0.00029321,2]
[324980337,1714491039916,-620.0,0.00029875,2]
[324980338,1714491039926,-620.00001525,0.00029875,2]
[324980339,1714491039935,-166.666666,0.00029962,2]
[324980340,1714491039944,-1000.0,0.00029999,30]
[324980341,1714491039954,-154.79876161,0.0003,4]
[324980342,1714491039963,-1500.0,0.0003,2]
[324980343,1714491039972,-1500.0,0.0003,2]
[324980344,1714491039982,-1500.0,0.0003,2]
[324980345,1714491039992,-1500.0,0.0003,2]
[324980346,1714491040007,-1500.0,0.0003,2]
[324980347,1714491040016,-1500.0,0.0003,2]
[324980348,1714491040025,-1242.47,0.0003,2]
[324980349,1714491040034,-1500.0,0.0003,2]
[324980350,1714491040045,-1500.0,0.0003,2]
[324980351,1714491040054,-1500.0,0.0003,2]
[324980352,1714491040064,-1500.0,0.0003,2]
[324980353,1714491040074,-188.46262606,0.0003,4]
[324980354,1714491040083,-212.54437456,0.0003,4]
[324980355,1714491040092,-280.0,0.0003,2]
[324980356,1714491040101,-163.0,0.0003028,14]
[324980357,1714491040110,-909.2,0.00030413,7]
[324980358,1714491040119,-272.9480792,0.00030447,2]
[324980359,1714491040129,-166.666666,0.00030603,2]
[324980360,1714491040138,-291.41384199,0.00030737,7]
[324980361,1714491040147,-152.79752245,0.00030974,7]
[324980362,1714491040157,-1121.66833623,0.00031,4]
[324980363,1714491040166,-417.0,0.00031035,2]
[324980364,1714491040175,-805.42085478,0.00031069,5]
[324980365,1714491040185,-1087.50995354,0.00031147,2]
[324980366,1714491040194,-1000.0,0.00031181,2]
[324980367,1714491040204,-1000.0,0.00031186,2]
[324980368,1714491040214,-164.6572,0.00031209,2]
[324980369,1714491040223,-164.65721,0.00031209,2]
[324980370,1714491040232,-164.6572,0.00031209,2]
[324980371,1714491040242,-291.41384199,0.00031272,7]
[324980372,1714491040253,-1000.0,0.00031311,2]
[324980373,1714491040262,-1000.0,0.00031331,2]
[324980374,1714491040272,-1000.0,0.00031342,2]
[324980375,1714491040282,-1000.0,0.00031352,2]
[324980376,1714491040291,-1000.0,0.00031366,2]
[324980377,1714491040300,-620.0,0.00031369,2]
[324980378,1714491040309,-153.0,0.00031406,2]
[324980379,1714491040319,-153.0,0.00031406,2]
[324980380,1714491040329,-153.0,0.00031406,2]
[324980381,1714491040338,-153.0,0.00031406,2]
[324980382,1714491040347,-153.0,0.00031406,2]
[324980383,1714491040358,-153.0,0.00031406,2]
[324980384,1714491040367,-153.0,0.00031406,2]
[324980385,1714491040376,-153.0,0.00031406,2]
[324980386,1714491040386,-153.0,0.00031406,2]
[324980387,1714491040395,-153.0,0.00031406,2]
[324980388,1714491040405,-291.41384199,0.00031419,7]
[324980389,1714491040415,-155.58236345,0.00031462,3]
[324980390,1714491040425,-909.2,0.00031536,7]
[324980391,1714491040434,-153.89214861,0.00031589,7]
[324980392,1714491040443,-44444.0,0.0003168,3]
[324980393,1714491040453,-1176.28834664,0.0003168,2]
[324980394,1714491040462,-269.9342733,0.0003168,2]
[324980395,1714491040472,-190.86959934,0.00031696,7]
[324980396,1714491040481,-1000.0,0.00031779,30]
[324980397,1714491040491,-1000.0,0.00031779,30]
[324980398,1714491040502,-1000.0,0.00031779,30]
[324980399,1714491040511,-1000.0,0.00031779,30]
[324980400,1714491040520,-1000.0,0.00031779,30]
[324980401,1714491040530,-18029.48148985,0.0003178,7]
[324980402,1714491040539,-500.0,0.0003178,2]
[324980403,1714491040549,-500.0,0.0003178,2]
[324980404,1714491040558,-500.17725542,0.0003178,2]
[324980405,1714491040568,-500.0,0.0003178,2]
[324980406,1714491040577,-500.0,0.0003178,2]
[324980407,1714491040587,-581.31483227,0.0003178,2]
[324980408,1714491040597,-500.0,0.0003178,2]
[324980409,1714491040606,-500.0,0.0003178,2]
[324980410,1714491040616,-500.0,0.0003178,2]
[324980411,1714491040625,-225.53891437,0.0003178,2]
[324980412,1714491040634,-500.0,0.0003178,2]
[324980413,1714491040644,-500.0,0.0003178,2]
[324980414,1714491040654,-500.65169276,0.0003178,2]
[324980415,1714491040663,-500.0,0.0003178,2]
[324980416,1714491040672,-500.0,0.0003178,2]
[324980417,1714491040682,-500.0,0.0003178,2]
[324980418,1714491040691,-609.77454068,0.0003178,2]
[324980419,1714491040701,-211.37505663,0.0003178,2]
[324980420,1714491040710,-500.0,0.0003178,2]
[324980421,1714491040719,-500.0,0.0003178,2]
[324980422,1714491040729,-300.0,0.0003178,2]
[324980423,1714491040738,-500.0,0.0003178,2]
[324980424,1714491040747,-500.0,0.0003178,2]
[324980425,1714491040758,-151.0,0.0003178,2]
[324980426,1714491040767,-500.0,0.0003178,2]
[324980427,1714491040776,-500.0,0.0003178,2]
[324980428,1714491040785,-500.0,0.0003178,2]
[324980429,1714491040795,-500.0,0.0003178,2]
[324980430,1714491040805,-500.0,0.0003178,2]
[324980431,1714491040814,-500.0,0.0003178,2]
[324980432,1714491040823,-500.0,0.0003178,2]
[324980433,1714491040833,-500.0,0.0003178,2]
[324980434,1714491040842,-500.0,0.0003178,2]
[324980435,1714491040851,-500.0,0.0003178,2]
[324980436,1714491040861,-500.0,0.0003178,2]
[324980437,1714491040871,-257.17433101,0.0003178,2]
[324980438,1714491040880,-500.0,0.0003178,2]
[324980439,1714491040888,-151.0,0.0003178,2]
[324980440,1714491040898,-500.0,0.0003178,2]
[324980441,1714491040907,-500.0,0.0003178,2]
[324980442,1714491040917,-346.70321081,0.0003178,2]
[324980443,1714491040926,-500.0,0.0003178,2]
[324980444,1714491040936,-500.0,0.0003178,2]
[324980445,1714491040945,-500.0,0.0003178,2]
[324980446,1714491040955,-500.0,0.0003178,2]
[324980447,1714491040964,-500.0,0.0003178,2]
[324980448,1714491040974,-500.0,0.0003178,2]
[324980449,1714491040987,-151.0,0.0003178,2]
[324980450,1714491040997,-500.0,0.0003178,2]
[324980451,1714491041009,-151.0,0.0003178,2]
[324980452,1714491041019,-170.4198203,0.0003178,2]
[324980453,1714491041030,-500.0,0.0003178,2]
[324980454,1714491041039,-151.0,0.0003178,2]
[324980455,1714491041049,-500.0,0.0003178,2]
[324980456,1714491041058,-500.0,0.0003178,2]
[324980457,1714491041068,-500.0,0.0003178,2]
[324980458,1714491041078,-154.295428,0.0003178,2]
[324980459,1714491041088,-500.0,0.0003178,2]
[324980460,1714491041097,-500.0,0.0003178,2]
[324980461,1714491041107,-500.0,0.0003178,2]
[324980462,1714491041116,-500.0,0.0003178,2]
[324980463,1714491041126,-500.0,0.0003178,2]
[324980464,1714491041135,-500.40652132,0.0003178,2]
[324980465,1714491041144,-500.0,0.0003178,2]
[324980466,1714491041154,-247.79907711,0.0003178,2]
[324980467,1714491041164,-500.0,0.0003178,2]
[324980468,1714491041173,-500.0,0.0003178,2]
[324980469,1714491041183,-585.75222546,0.0003178,2]
[324980470,1714491041192,-501.14246556,0.0003178,2]
[324980471,1714491041201,-201.49518585,0.0003178,2]
[324980472,1714491041210,-500.0,0.0003178,2]
[324980473,1714491041219,-500.0,0.0003178,2]
[324980474,1714491041228,-500.0,0.0003178,2]
[324980475,1714491041238,-155.90002922,0.0003178,2]
[324980476,1714491041247,-500.0,0.0003178,2]
[324980477,1714491041258,-500.0,0.0003178,2]
[324980478,1714491041267,-500.0,0.0003178,2]
[324980479,1714491041276,-500.0,0.0003178,2]
[324980480,1714491041285,-500.27148347,0.0003178,2]
[324980481,1714491041294,-543.40234227,0.0003178,2]
[324980482,1714491041304,-208.08643607,0.0003178,2]
[324980483,1714491041313,-500.0,0.0003178,2]
[324980484,1714491041323,-500.0,0.0003178,2]
[324980485,1714491041332,-502.87242124,0.0003178,2]
[324980486,1714491041341,-500.0,0.0003178,2]
[324980487,1714491041351,-500.0,0.0003178,2]
[324980488,1714491041514,-500.0,0.0003178,2]
[324980489,1714491041524,-500.0,0.0003178,2]
[324980490,1714491041533,-500.0,0.0003178,2]
[324980491,1714491041542,-500.0,0.0003178,2]
[324980492,1714491041551,-300.0,0.0003178,2]
[324980493,1714491041561,-500.0,0.0003178,2]
[324980494,1714491041570,-500.0,0.0003178,2]
[324980495,1714491041579,-500.0,0.0003178,2]
[324980496,1714491041588,-500.0,0.0003178,2]
[324980497,1714491041598,-184.7246913,0.0003178,2]
[324980498,1714491041607,-500.0,0.0003178,2]
[324980499,1714491041617,-500.0,0.0003178,2]
[324980500,1714491041626,-500.0,0.0003178,2]
[324980501,1714491041635,-500.0,0.0003178,2]
[324980502,1714491041645,-500.0,0.0003178,2]
[324980503,1714491041654,-500.0,0.0003178,2]
[324980504,1714491041663,-500.0,0.0003178,2]
[324980505,1714491041672,-500.0,0.0003178,2]
[324980506,1714491041681,-1076.15,0.0003178,2]
[324980507,1714491041690,-500.0,0.0003178,2]
[324980508,1714491041700,-520.83,0.0003178,2]
[324980509,1714491041709,-502.92025452,0.0003178,2]
[324980510,1714491041718,-500.0,0.0003178,2]
[324980511,1714491041727,-500.0,0.0003178,2]
[324980512,1714491041738,-500.0,0.0003178,2]
[324980513,1714491041747,-500.0,0.0003178,2]
[324980514,1714491041760,-500.0,0.0003178,2]
[324980515,1714491041769,-500.0,0.0003178,2]
[324980516,1714491041779,-500.0,0.0003178,2]
[324980517,1714491041787,-500.0,0.0003178,2]
[324980518,1714491041797,-500.0,0.0003178,2]
[324980519,1714491041807,-500.0,0.0003178,2]
[324980520,1714491041816,-500.0,0.0003178,2]
[324980521,1714491041826,-500.0,0.0003178,2]
[324980522,1714491041835,-500.0,0.0003178,2]
[324980523,1714491041844,-153.453431,0.0003178,2]
[324980524,1714491041853,-500.0,0.0003178,2]
[324980525,1714491041863,-188.520497,0.0003178,2]
[324980526,1714491041873,-500.0,0.0003178,2]
[324980527,1714491041882,-500.0,0.0003178,2]
[324980528,1714491041891,-188.520497,0.0003178,2]
[324980529,1714491041900,-500.0,0.0003178,2]
[324980530,1714491041910,-500.0,0.0003178,2]
[324980531,1714491041920,-500.0,0.0003178,2]
[324980532,1714491041929,-500.0,0.0003178,2]
[324980533,1714491041938,-500.0,0.0003178,2]
[324980534,1714491041947,-500.0,0.0003178,2]
[324980535,1714491041956,-500.0,0.0003178,2]
[324980536,1714491041966,-513.78288345,0.0003178,2]
[324980537,1714491041975,-617.47238427,0.0003178,2]
[324980538,1714491041984,-500.0,0.0003178,2]
[324980539,1714491041998,-500.0,0.0003178,2]
[324980540,1714491042011,-500.0,0.0003178,2]
[324980541,1714491042020,-500.0,0.0003178,2]
[324980542,1714491042030,-242.68815593,0.0003178,2]
[324980543,1714491042040,-612.04776119,0.0003178,2]
[324980544,1714491042049,-500.0,0.0003178,2]
[324980545,1714491042059,-500.0,0.0003178,2]
[324980546,1714491042070,-500.0,0.0003178,2]
[324980547,1714491042079,-500.0,0.0003178,2]
[324980548,1714491042089,-692.53,0.0003178,2]
[324980549,1714491042098,-500.0,0.0003178,2]
[324980550,1714491042108,-500.0,0.0003178,2]
[324980551,1714491042117,-1159.78,0.0003178,2]
[324980552,1714491042126,-500.0,0.0003178,2]
[324980553,1714491042135,-500.0,0.0003178,2]
[324980554,1714491042144,-500.0,0.0003178,2]
[324980555,1714491042153,-500.0,0.0003178,2]
[324980556,1714491042163,-500.0,0.0003178,2]
[324980557,1714491042172,-500.0,0.0003178,2]
[324980558,1714491042181,-500.0,0.0003178,2]
[324980559,1714491042190,-500.0,0.0003178,2]
[324980560,1714491042199,-500.0,0.0003178,2]
[324980561,1714491042208,-500.94514133,0.0003178,2]
[324980562,1714491042218,-500.0,0.0003178,2]
[324980563,1714491042227,-500.0,0.0003178,2]
[324980564,1714491042236,-500.0,0.0003178,2]
[324980565,1714491042245,-500.0,0.0003178,2]
[324980566,1714491042257,-500.0,0.0003178,2]
[324980567,1714491042265,-353.95625863,0.0003178,2]
[324980568,1714491042274,-500.0,0.0003178,2]
[324980569,1714491042283,-500.0,0.0003178,2]
[324980570,1714491042293,-500.0,0.0003178,2]
[324980571,1714491042302,-500.0,0.0003178,2]
[324980572,1714491042311,-500.0,0.0003178,2]
[324980573,1714491042321,-500.0,0.0003178,2]
[324980574,1714491042331,-151.0,0.0003178,2]
[324980575,1714491042341,-151.0,0.0003178,2]
[324980576,1714491042351,-1091.08,0.0003178,2]
[324980577,1714491042360,-1091.08,0.0003178,2]
[324980578,1714491042370,-1091.08,0.0003178,2]
[324980579,1714491042380,-1091.08,0.0003178,2]
[324980580,1714491042391,-1091.08,0.0003178,2]
[324980581,1714491042401,-1091.08,0.0003178,2]
[324980582,1714491042411,-1091.08,0.0003178,2]
[324980583,1714491042422,-1091.08,0.0003178,2]
[324980584,1714491042432,-1091.08,0.0003178,2]
[324980585,1714491042442,-1091.08,0.0003178,2]
[324980586,1714491042452,-1091.08,0.0003178,2]
[324980587,1714491042462,-1091.08,0.0003178,2]
[324980588,1714491042472,-1091.08,0.0003178,2]
[324980589,1714491042483,-1091.08,0.0003178,2]
[324980590,1714491042493,-503.98,0.0003178,2]
[324980591,1714491042506,-500.0,0.0003178,2]
[324980592,1714491042515,-500.0,0.0003178,2]
[324980593,1714491042524,-201.13962678,0.0003178,2]
[324980594,1714491042534,-500.0,0.0003178,2]
[324980595,1714491042544,-500.0,0.0003178,2]
[324980596,1714491042553,-524.63607725,0.0003178,2]
[324980597,1714491042562,-500.0,0.0003178,2]
[324980598,1714491042572,-500.0,0.0003178,2]
[324980599,1714491042581,-500.0,0.0003178,2]
[324980600,1714491042591,-500.0,0.0003178,2]
[324980601,1714491042602,-509.26,0.0003178,2]
[324980602,1714491042611,-500.0,0.0003178,2]
[324980603,1714491042620,-500.0,0.0003178,2]
[324980604,1714491042630,-500.0,0.0003178,2]
[324980605,1714491042640,-500.0,0.0003178,2]
[324980606,1714491042649,-500.0,0.0003178,2]
[324980607,1714491042659,-500.0,0.0003178,2]
[324980608,1714491042668,-500.0,0.0003178,2]
[324980609,1714491042677,-500.0,0.0003178,2]
[324980610,1714491042686,-500.0,0.0003178,2]
[324980611,1714491042695,-500.0,0.0003178,2]
[324980612,1714491042705,-500.0,0.0003178,2]
[324980613,1714491042714,-151.0,0.0003178,2]
[324980614,1714491042723,-151.0,0.0003178,2]
[324980615,1714491042733,-500.248813,0.0003178,2]
[324980616,1714491042742,-151.0,0.0003178,2]
[324980617,1714491042755,-500.0,0.0003178,2]
[324980618,1714491042764,-151.0,0.0003178,2]
[324980619,1714491042773,-500.0,0.0003178,2]
[324980620,1714491042782,-500.0,0.0003178,2]
[324980621,1714491042791,-428.95152644,0.0003178,2]
[324980622,1714491042800,-501.58156019,0.0003178,2]
[324980623,1714491042810,-500.0,0.0003178,2]
[324980624,1714491042819,-518.91878986,0.0003178,2]
[324980625,1714491042829,-500.0,0.0003178,2]
[324980626,1714491042838,-500.0,0.0003178,2]
[324980627,1714491042847,-500.0,0.0003178,2]
[324980628,1714491042858,-500.0,0.0003178,2]
[324980631,1714491042867,-267.809092,0.0003178,2]
[324980633,1714491042876,-151.0,0.0003178,2]
[324980636,1714491042885,-267.809092,0.0003178,2]
[324980639,1714491042895,-151.0,0.0003178,2]
[324980641,1714491042904,-195.154356,0.0003178,2]
[324980644,1714491042913,-500.0,0.0003178,2]
[324980647,1714491042923,-195.154356,0.0003178,2]
[324980650,1714491042933,-267.809092,0.0003178,2]
[324980652,1714491042942,-267.809092,0.0003178,2]
[324980653,1714491042951,-500.0,0.0003178,2]
[324980654,1714491042960,-195.154356,0.0003178,2]
[324980655,1714491042969,-500.0,0.0003178,2]
[324980656,1714491042979,-195.154356,0.0003178,2]
[324980658,1714491042989,-500.0,0.0003178,2]
[324980661,1714491043002,-500.0,0.0003178,2]
[324980664,1714491043011,-401.239835,0.0003178,2]
[324980667,1714491043022,-401.239835,0.0003178,2]
[324980670,1714491043031,-500.0,0.0003178,2]
[324980673,1714491043041,-500.0,0.0003178,2]
[324980676,1714491043050,-577.07,0.0003178,2]
[324980680,1714491043059,-500.0,0.0003178,2]
[324980684,1714491043072,-500.0,0.0003178,2]
[324980689,1714491043082,-500.0,0.0003178,2]
[324980695,1714491043091,-290.12612,0.0003178,2]
[324980698,1714491043101,-290.12612,0.0003178,2]
[324980700,1714491043110,-500.0,0.0003178,2]
[324980702,1714491043120,-500.0,0.0003178,2]
[324980704,1714491043131,-290.12612,0.0003178,2]
[324980706,1714491043141,-673.780032,0.0003178,2]
[324980708,1714491043151,-673.780032,0.0003178,2]
[324980709,1714491043160,-290.12612,0.0003178,2]
[324980710,1714491043169,-673.780032,0.0003178,2]
[324980712,1714491043179,-673.780032,0.0003178,2]
[324980715,1714491043191,-500.0,0.0003178,2]
[324980717,1714491043202,-500.0,0.0003178,2]
[324980719,1714491043214,-500.0,0.0003178,2]
[324980721,1714491043226,-500.0,0.0003178,2]
[324980723,1714491043239,-500.0,0.0003178,2]
[324980725,1714491043250,-500.0,0.0003178,2]
[324980727,1714491043261,-1018.768052,0.0003178,2]
[324980729,1714491043271,-1018.768052,0.0003178,2]
[324980731,1714491043281,-500.0,0.0003178,2]
[324980732,1714491043293,-1018.768052,0.0003178,2]
[324980733,1714491043304,-1018.768052,0.0003178,2]
[324980734,1714491043315,-500.0,0.0003178,2]
[324980735,1714491043327,-500.0,0.0003178,2]
[324980736,1714491043338,-500.0,0.0003178,2]
[324980737,1714491043349,-3482.89,0.0003178,2]
[324980738,1714491043361,-398.77823047,0.0003178,2]
[324980739,1714491043372,-500.0,0.0003178,2]
[324980740,1714491043385,-151.0,0.0003178,2]
[324980741,1714491043397,-500.0,0.0003178,2]
[324980742,1714491043409,-151.0,0.0003178,2]
[324980743,1714491043421,-151.0,0.0003178,2]
[324980744,1714491043433,-500.0,0.0003178,2]
[324980745,1714491043444,-151.0,0.0003178,2]
[324980746,1714491043455,-151.0,0.0003178,2]
[324980747,1714491043466,-151.0,0.0003178,2]
[324980748,1714491043478,-500.0,0.0003178,2]
[324980749,1714491043490,-500.0,0.0003178,2]
[324980750,1714491043501,-500.0,0.0003178,2]
[324980751,1714491043512,-500.0,0.0003178,2]
[324980752,1714491043522,-500.0,0.0003178,2]
[324980753,1714491043534,-500.0,0.0003178,2]
[324980754,1714491043544,-500.0,0.0003178,2]
[324980755,1714491043554,-500.0,0.0003178,2]
[324980756,1714491043564,-500.0,0.0003178,2]
[324980757,1714491043575,-500.0,0.0003178,2]
[324980758,1714491043587,-500.0,0.0003178,2]
[324980759,1714491043597,-3430.78985,0.0003178,2]
[324980760,1714491043609,-3430.78985,0.0003178,2]
[324980761,1714491043620,-500.0,0.0003178,2]
[324980762,1714491043631,-1252.31,0.0003178,2]
[324980763,1714491043643,-500.0,0.0003178,2]
[324980764,1714491043654,-3430.78985,0.0003178,2]
[324980765,1714491043666,-500.0,0.0003178,2]
[324980767,1714491043678,-3430.78985,0.0003178,2]
[324980769,1714491043689,-500.0,0.0003178,2]
[324980770,1714491043702,-500.0,0.0003178,2]
[324980771,1714491043714,-151.0,0.0003178,2]
[324980772,1714491043724,-151.0,0.0003178,2]
[324980773,1714491043734,-151.0,0.0003178,2]
[324980774,1714491043743,-151.0,0.0003178,2]
[324980775,1714491043754,-500.0,0.0003178,2]
[324980776,1714491043769,-776.83,0.0003178,2]
[324980777,1714491043780,-500.0,0.0003178,2]
[324980778,1714491043792,-151.0,0.0003178,2]
[324980779,1714491043804,-151.0,0.0003178,2]
[324980780,1714491043815,-151.0,0.0003178,2]
[324980781,1714491043826,-151.0,0.0003178,2]
[324980782,1714491043838,-151.0,0.0003178,2]
[324980783,1714491043848,-151.0,0.0003178,2]
[324980784,1714491043858,-500.0,0.0003178,2]
[324980785,1714491043868,-500.0,0.0003178,2]
[324980786,1714491043879,-151.0,0.0003178,2]
[324980787,1714491043889,-151.0,0.0003178,2]
[324980788,1714491043900,-500.0,0.0003178,2]
[324980789,1714491043912,-151.0,0.0003178,2]
[324980790,1714491043923,-151.0,0.0003178,2]
[324980791,1714491043934,-509.84,0.0003178,2]
[324980792,1714491043943,-500.0,0.0003178,2]
[324980793,1714491043953,-500.0,0.0003178,2]
[324980794,1714491043963,-151.0,0.0003178,2]
[324980795,1714491043973,-151.0,0.0003178,2]
[324980796,1714491043985,-500.0,0.0003178,2]
[324980797,1714491043996,-561.27769558,0.0003178,2]
[324980798,1714491044009,-500.0,0.0003178,2]
[324980799,1714491044021,-500.0,0.0003178,2]
[324980800,1714491044033,-500.0,0.0003178,2]
[324980801,1714491044044,-500.0,0.0003178,2]
[324980802,1714491044055,-500.0,0.0003178,2]
[324980803,1714491044069,-500.0,0.0003178,2]
[324980804,1714491044080,-500.0,0.0003178,2]
[324980805,1714491044091,-500.0,0.0003178,2]
[324980806,1714491044102,-500.0,0.0003178,2]
[324980807,1714491044112,-500.0,0.0003178,2]